fUSD/lending_fUSD_20251229
["ID","MTS","AMOUNT","RATE_DAILY","PERIOD"]
[399979447,1766970744572,151.0,0.00012744,2]
[399979448,1766970766149,500.0,0.00012743,2]
[399979449,1766970766189,500.0,0.00012743,2]
[399979450,1766970766230,500.0,0.00012743,2]
[399979451,1766970766272,500.0,0.00012743,2]
[399979452,1766970766314,500.0,0.00012743,2]
[399979453,1766970766356,500.0,0.00012743,2]
[399979454,1766970766398,500.0,0.00012743,2]
[399979455,1766970767063,170.54212335,0.00012743,2]
[399979456,1766970786437,190.55068146,0.00012743,2]
[399979457,1766970795484,492.66971157,0.00012743,2]
[399979458,1766970795713,500.0,0.00012743,2]
[399979459,1766970821306,166.66,0.00012458,2]
[399979460,1766970821531,166.66,0.0001272,2]
[399979461,1766970864226,500.0,0.00012644,2]
[399979462,1766970901359,1000.0,0.00012472,2]
[399979463,1766971025411,151.0,0.00012744,2]
[399979464,1766971026032,151.0,0.00012744,2]
[399979465,1766971026647,151.0,0.00012744,2]
[399979466,1766971027508,151.0,0.00012744,2]
[399979467,1766971028172,151.0,0.00012744,2]
[399979468,1766971028776,151.0,0.00012744,2]
[399979469,1766971029427,151.0,0.00012744,2]
[399979470,1766971030043,151.0,0.00012744,2]
[399979471,1766971030646,151.0,0.00012744,2]
[399979472,1766971030684,500.0,0.00012744,2]
[399979473,1766971031281,500.0,0.00012744,2]
[399979474,1766971031725,151.0,0.00012744,2]
[399979475,1766971031869,500.0,0.00012744,2]
[399979476,1766971032618,151.0,0.00012744,2]
[399979477,1766971032992,151.0,0.00012744,2]
[399979478,1766971036940,-255.0,0.00012744,2]
[399979479,1766971036972,-200.0,0.00012744,2]
[399979480,1766971040565,151.0,0.00012744,2]
[399979481,1766971041159,151.0,0.00012744,2]
[399979482,1766971041846,151.0,0.00012744,2]
[399979483,1766971042420,151.0,0.00012744,2]
[399979484,1766971043096,151.0,0.00012744,2]
[399979485,1766971043721,151.0,0.00012744,2]
[399979486,1766971097314,171.53,9.857e-05,2]
[399979487,1766971152032,500.0,0.00030136,120]
[399979488,1766971152348,245.15900731,0.00030136,120]
[399979489,1766971157384,192.19,0.00030137,120]
[399979490,1766971226857,2019.125105,0.00012695,2]
[399979491,1766971232948,944.25,0.00012328,2]
[399979492,1766971460343,1600.0,0.00012291,2]
[399979493,1766971490596,476.0,0.0003,120]
[399979494,1766971520143,5436.634895,9e-05,2]
[399979495,1766971520166,1909.79845348,9e-05,2]
[399979497,1766971564534,334.80494252,0.00011,2]
[399979498,1766971587096,7755.406604,0.000127,2]
[399979499,1766971587119,10000.01,0.000127,2]
[399979500,1766971587145,10000.01,0.000127,2]
[399979501,1766971587167,10000.01,0.000127,2]
[399979502,1766971587189,10000.01,0.000127,2]
[399979503,1766971587212,10000.01,0.000127,2]
[399979504,1766971587234,10000.01,0.000127,2]
[399979505,1766971587255,10000.01,0.000127,2]
[399979506,1766971587277,10000.01,0.000127,2]
[399979507,1766971587297,10000.01,0.000127,2]
[399979511,1766971669669,5932.12698209,0.00012,2]
[399979512,1766971688352,203.59064576,0.00012524,2]
[399979513,1766971689121,306.66963952,0.000125,2]
[399979514,1766971707336,9489.74971472,0.00012184,2]
[399979515,1766971707358,10000.01,0.00012184,2]
[399979516,1766971707379,10000.01,0.00012184,2]
[399979517,1766971707401,5560.96028528,0.00012184,2]
[399979520,1766971804647,283.64098003,0.00030136,120]
[399979521,1766971805556,381.73493723,0.00030136,120]
[399979522,1766971808022,222.84236785,0.00030136,120]
[399979523,1766971811403,217.50833421,0.00030136,120]
[399979524,1766971811817,500.0,0.00030136,120]
[399979525,1766971812049,277.95522364,0.00030136,120]
[399979526,1766971813376,238.76733523,0.00030136,120]
[399979528,1766971818959,252.53762055,0.00030136,120]
[399979529,1766971820433,153.81,0.00012201,2]
[399979530,1766971821583,193.55699006,0.00030136,120]
[399979531,1766971823114,265.28653752,0.00030136,120]
[399979532,1766971825107,267.10224532,0.00030136,120]
[399979533,1766971830683,329.44761136,0.00030136,120]
[399979535,1766971831508,-300.0,0.00012689,2]
[399979536,1766971831518,-300.0,0.00012689,2]
[399979537,1766971831527,-300.0,0.00012689,2]
[399979539,1766971831536,-1200.0,0.00012689,2]
[399979542,1766971831545,-9433.80748,0.0001269,2]
[399979545,1766971831616,-1022.24513504,0.0001269,2]
[399979546,1766971831628,-2927.71524413,0.0001269,2]
[399979547,1766971831640,-21873.06779592,0.0001269,2]
[399979548,1766971831649,-254.0,0.0001269,2]
[399979549,1766971831658,-150.0,0.00012698,2]
[399979550,1766971831668,-180.87789984,0.00012699,2]
[399979551,1766971831678,-500.0,0.00012699,2]
[399979552,1766971831687,-500.0,0.00012699,2]
[399979553,1766971831696,-500.0,0.00012699,2]
[399979554,1766971831705,-500.0,0.00012699,2]
[399979555,1766971831714,-500.0,0.00012699,2]
[399979556,1766971831723,-500.0,0.00012699,2]
[399979557,1766971831733,-500.0,0.00012699,2]
[399979558,1766971831742,-500.0,0.00012699,2]
[399979559,1766971831750,-500.0,0.00012699,2]
[399979560,1766971831760,-500.0,0.00012699,2]
[399979561,1766971831769,-500.0,0.00012699,2]
[399979562,1766971831778,-500.0,0.00012699,2]
[399979563,1766971831787,-500.0,0.00012699,2]
[399979564,1766971831796,-268.9505437,0.00012699,2]
[399979565,1766971831806,-500.0,0.00012699,2]
[399979566,1766971831816,-500.0,0.00012699,2]
[399979567,1766971831826,-500.0,0.00012699,2]
[399979568,1766971831835,-500.0,0.00012699,2]
[399979569,1766971831844,-500.0,0.00012699,2]
[399979570,1766971831854,-500.0,0.00012699,2]
[399979571,1766971831865,-500.0,0.00012699,2]
[399979572,1766971831875,-500.0,0.00012699,2]
[399979573,1766971831884,-500.0,0.00012699,2]
[399979574,1766971831894,-500.0,0.00012699,2]
[399979575,1766971831903,-48388.86988984,0.000127,2]
[399979576,1766971831917,-397.84647269,0.000127,2]
[399979577,1766971831930,-8816.86183639,0.000127,2]
[399979578,1766971831943,-7055.01999984,0.000127,2]
[399979579,1766971831955,-405.57120192,0.000127,2]
[399979580,1766971831968,-601.9755791,0.000127,2]
[399979581,1766971831979,-369.39188292,0.000127,2]
[399979582,1766971832587,238.05003077,0.00030136,120]
[399979583,1766971836536,246.94384512,0.00030136,120]
[399979590,1766971837821,-431.52859862,0.000127,2]
[399979591,1766971837834,-3528.25184542,0.000127,2]
[399979605,1766971839046,235.26796792,0.00030136,120]
[399979612,1766971839916,-37256.30885565,0.000127,2]
[399979614,1766971839926,-200.0,0.00012856,2]
[399979616,1766971839935,-200.0,0.00012871,2]
[399979618,1766971839945,-904.68,0.0001291,2]
[399979620,1766971839954,-150.0,0.0001295,2]
[399979622,1766971839964,-150.0,0.0001295,2]
[399979624,1766971839973,-150.0,0.00012977,2]
[399979626,1766971839983,-150.0,0.00012977,2]
[399979627,1766971839992,-166.66,0.00012982,2]
[399979628,1766971840001,-200.0,0.00013,2]
[399979629,1766971840010,-168.90461355,0.00013005,2]
[399979630,1766971840019,-218.16694322,0.00013005,2]
[399979631,1766971840028,-12386.13706621,0.00013073,2]
[399979632,1766971840038,-159.79407271,0.00013099,2]
[399979633,1766971840046,-153.0,0.00013099,2]
[399979634,1766971840055,-153.0,0.00013099,2]
[399979635,1766971840065,-153.0,0.00013099,2]
[399979636,1766971840074,-153.0,0.00013099,2]
[399979637,1766971840084,-153.0,0.00013099,2]
[399979638,1766971840095,-153.0,0.00013099,2]
[399979639,1766971840107,-153.0,0.00013099,2]
[399979640,1766971840116,-153.0,0.00013099,2]
[399979641,1766971840126,-153.0,0.00013099,2]
[399979642,1766971840135,-153.0,0.00013099,2]
[399979643,1766971840146,-153.0,0.00013099,2]
[399979644,1766971840156,-153.0,0.00013099,2]
[399979645,1766971840165,-246.0,0.00013099,2]
[399979646,1766971840174,-153.0,0.00013099,2]
[399979647,1766971840183,-153.0,0.00013099,2]
[399979648,1766971840192,-153.0,0.00013099,2]
[399979649,1766971840201,-153.0,0.00013099,2]
[399979650,1766971840211,-1256.0,0.00013099,2]
[399979651,1766971840220,-153.0,0.00013099,2]
[399979652,1766971840229,-153.0,0.00013099,2]
[399979653,1766971840239,-500.0,0.00013112,2]
[399979654,1766971840248,-150.0,0.00013112,2]
[399979655,1766971840257,-250.0,0.00013151,2]
[399979656,1766971840267,-155.92901236,0.00013162,2]
[399979657,1766971840276,-582.48,0.0001317,2]
[399979658,1766971840286,-376.73,0.000132,2]
[399979659,1766971840296,-151.0,0.00013217,2]
[399979660,1766971840306,-151.0,0.00013217,2]
[399979661,1766971840316,-151.0,0.00013217,2]
[399979662,1766971840325,-151.0,0.00013217,2]
[399979663,1766971840334,-500.0,0.00013217,2]
[399979664,1766971840344,-500.0,0.00013217,2]
[399979665,1766971840354,-500.0,0.00013217,2]
[399979666,1766971840363,-153.70166196,0.00013217,2]
[399979667,1766971840373,-151.0,0.00013217,2]
[399979668,1766971840383,-200.0,0.00013217,2]
[399979669,1766971840393,-3815.505004,0.00013217,2]
[399979670,1766971840405,-150.0,0.00013222,2]
[399979671,1766971840416,-150.0,0.00013222,2]
[399979672,1766971840426,-150.0,0.00013222,2]
[399979673,1766971840435,-33520.8529,0.00013225,2]
[399979674,1766971840444,-1000.0,0.00013225,2]
[399979675,1766971840453,-2500.0,0.00013225,2]
[399979676,1766971840463,-202.9801464,0.00013232,2]
[399979677,1766971840472,-166.66,0.00013244,2]
[399979678,1766971840481,-150.0,0.00013249,2]
[399979679,1766971840491,-150.0,0.00013249,2]
[399979680,1766971840500,-210.93933679,0.00013262,2]
[399979681,1766971840509,-178.51809423,0.00013262,2]
[399979682,1766971840518,-150.0,0.00013277,2]
[399979683,1766971840528,-200.0,0.00013277,2]
[399979684,1766971840537,-178.57,0.000133,2]
[399979685,1766971840546,-150.0,0.00013304,2]
[399979686,1766971840556,-1000.0,0.00013314,2]
[399979687,1766971840565,-500.0,0.00013324,2]
[399979688,1766971840575,-212.83290917,0.00013324,2]
[399979689,1766971840585,-194.8687981,0.00013324,2]
[399979690,1766971840594,-278.69889501,0.00013324,2]
[399979691,1766971840603,-883259.83880848,0.00013325,2]
[399979692,1766971840633,-12500.0,0.00013325,2]
[399979693,1766971840643,-8725.65127166,0.00013325,2]
[399979694,1766971840654,-8947.21879473,0.00013325,2]
[399979695,1766971840666,-8943.78386462,0.00013325,2]
[399979696,1766971840677,-9077.54866152,0.00013325,2]
[399979697,1766971840688,-8943.84023489,0.00013325,2]
[399979698,1766971840699,-474.60097449,0.00013325,2]
[399979699,1766971840710,-343.42901379,0.00013325,2]
[399979700,1766971840721,-4332.05253379,0.00013325,2]
[399979703,1766971843471,-1602.30727724,0.00013325,2]
[399979705,1766971843484,-388.64047566,0.00013325,2]
[399979707,1766971844349,-3700.92515172,0.00013325,2]
[399979708,1766971844361,-527.50353436,0.00013325,2]
[399979709,1766971844679,-426.14441007,0.00013325,2]
[399979718,1766971845768,-967.44599619,0.00013325,2]
[399979719,1766971845891,-1611.51,0.00013325,2]
[399979720,1766971846010,-548.15193719,0.00013325,2]
[399979721,1766971846127,-265.59999999,0.00013325,2]
[399979727,1766971848291,187.76779977,0.00030136,120]
[399979728,1766971851032,150.44190948,0.00030136,120]
[399979729,1766971854898,371.95396994,0.00030136,120]
[399979730,1766971854928,160.83890062,0.00030136,120]
[399979731,1766971858535,226.61556779,0.00030136,120]
[399979732,1766971859730,168.74199306,0.00030136,120]
[399979733,1766971860349,155.8943781,0.00030136,120]
[399979734,1766971866511,190.29476237,0.00030136,120]
[399979735,1766971869563,191.00200634,0.00030136,120]
[399979736,1766971871942,285.17966289,0.00030136,120]
[399979737,1766971874376,226.66436687,0.00030136,120]
[399979738,1766971878146,282.55709134,0.00030136,120]
[399979739,1766971883700,422.6403,0.00030136,120]
[399979740,1766971884825,645.31824634,0.00030136,120]
[399979741,1766971888707,166.7515649,0.00030136,120]
[399979742,1766971889074,263.60829345,0.00030136,120]
[399979743,1766971896695,184.17563752,0.00030136,120]
[399979744,1766971898458,202.80284297,0.00030136,120]
[399979745,1766971898568,227.18948504,0.00030136,120]
[399979746,1766971907332,245.75535832,0.00030136,120]
[399979747,1766971912057,193.00298408,0.00030136,120]
[399979748,1766971912768,10000.01,0.0001259,2]
[399979749,1766971912795,10000.01,0.0001259,2]
[399979750,1766971912822,10000.01,0.0001259,2]
[399979751,1766971912849,10000.01,0.0001259,2]
[399979752,1766971912874,10000.01,0.0001259,2]
[399979753,1766971912900,10000.01,0.0001259,2]
[399979754,1766971912927,10000.01,0.0001259,2]
[399979755,1766971912953,10000.01,0.0001259,2]
[399979756,1766971912986,10000.01,0.0001259,2]
[399979757,1766971913016,10000.01,0.0001259,2]
[399979758,1766971913053,247.71088768,0.00030136,120]
[399979759,1766971913584,-828.49400523,0.0001259,2]
[399979760,1766971914713,182.69500173,0.00030136,120]
[399979761,1766971916173,-176.88943954,0.0001259,2]
[399979762,1766971916566,225.27882538,0.00030136,120]
[399979763,1766971917665,164.62238843,0.00030136,120]
[399979764,1766971919378,-196.34804293,0.0001259,2]
[399979765,1766971919433,207.69956717,0.00030136,120]
[399979766,1766971920006,170.87863228,0.00030136,120]
[399979767,1766971921415,-153.65871412,0.00012589,2]
[399979768,1766971921627,-146.34128588,0.00012589,2]
[399979769,1766971921742,252.52252355,0.00030136,120]
[399979770,1766971923083,-437.23700111,0.0001259,2]
[399979771,1766971925049,321.43689209,0.00030136,120]
[399979772,1766971925109,203.30462418,0.00030136,120]
[399979773,1766971925671,-184.94993181,0.0001259,2]
[399979774,1766971926926,-6832.83764449,0.0001259,2]
[399979775,1766971927008,-10000.01,0.0001259,2]
[399979776,1766971927117,-10000.01,0.0001259,2]
[399979777,1766971927170,192.39954713,0.00030136,120]
[399979778,1766971927251,-10000.01,0.0001259,2]
[399979779,1766971928395,-163.03828711,0.0001259,2]
[399979780,1766971928553,206.86147955,0.00030136,120]
[399979781,1766971929163,-10000.01,0.0001259,2]
[399979782,1766971929356,-10000.01,0.0001259,2]
[399979783,1766971929460,-10000.01,0.0001259,2]
[399979784,1766971929613,158.98246925,0.00030136,120]
[399979785,1766971930304,421.24179869,0.00030136,120]
[399979786,1766971930685,500.0,0.00030136,120]
[399979787,1766971930913,500.0,0.00030136,120]
[399979788,1766971931055,300.16148546,0.00030136,120]
[399979789,1766971931173,587.35295239,0.00030136,120]
[399979790,1766971932065,166.32004028,0.00030136,120]
[399979791,1766971932091,-10000.01,0.0001259,2]
[399979792,1766971932205,-10000.01,0.0001259,2]
[399979793,1766971932328,-10000.01,0.0001259,2]
[399979794,1766971933382,-512.37073526,0.0001259,2]
[399979795,1766971933957,333.28434084,0.00030136,120]
[399979796,1766971935921,269.48863092,0.00030136,120]
[399979797,1766971935954,171.47906194,0.00030136,120]
[399979798,1766971936285,315.74567986,0.00030136,120]
[399979799,1766971937736,479.87281458,0.00030136,120]
[399979800,1766971937778,199.38261268,0.00030136,120]
[399979801,1766971937831,238.3258677,0.00030136,120]
[399979802,1766971938190,-10000.01,0.0001259,2]
[399979803,1766971938319,-10000.01,0.0001259,2]
[399979804,1766971938432,-10000.01,0.0001259,2]
[399979805,1766971940218,320.82486947,0.00030136,120]
[399979806,1766971941306,-10000.01,0.0001259,2]
[399979807,1766971941738,-10000.01,0.0001259,2]
[399979808,1766971941777,199.84519423,0.00030136,120]
[399979809,1766971941845,-10000.01,0.0001259,2]
[399979810,1766971942094,161.02605574,0.00030136,120]
[399979811,1766971942595,500.0,0.00030136,120]
[399979812,1766971942820,544.22112293,0.00030136,120]
[399979813,1766971944235,-10000.01,0.0001259,2]
[399979814,1766971944351,-10000.01,0.0001259,2]
[399979815,1766971944488,-10000.01,0.0001259,2]
[399979816,1766971944682,153.62203026,0.00030136,120]
[399979817,1766971945846,215.07392314,0.00030136,120]
[399979818,1766971946069,279.08912588,0.00030136,120]
[399979819,1766971947267,-10000.01,0.0001259,2]
[399979820,1766971947413,-10000.01,0.0001259,2]
[399979821,1766971947563,-10000.01,0.0001259,2]
[399979822,1766971947917,158.92510858,0.00030136,120]
[399979823,1766971947954,190.91725999,0.00030136,120]
[399979824,1766971948212,231.28195634,0.00030136,120]
[399979825,1766971949705,389.92673246,0.00030136,120]
[399979826,1766971950531,-10000.01,0.0001259,2]
[399979827,1766971950710,157.09976886,0.00030136,120]
[399979828,1766971951124,-10000.01,0.0001259,2]
[399979829,1766971951221,-10000.01,0.0001259,2]
[399979830,1766971953167,186.63423998,0.00030136,120]
[399979831,1766971953361,273.03565146,0.00030136,120]
[399979832,1766971953376,-10000.01,0.0001259,2]
[399979833,1766971953471,-10000.01,0.0001259,2]
[399979834,1766971953568,-10000.01,0.0001259,2]
[399979835,1766971953696,186.18660587,0.00030136,120]
[399979836,1766971956349,-10000.01,0.0001259,2]
[399979837,1766971956495,-10000.01,0.0001259,2]
[399979838,1766971956596,-10000.01,0.0001259,2]
[399979839,1766971958740,269.71818266,0.00030136,120]
[399979840,1766971958806,173.23795422,0.00030136,120]
[399979841,1766971959542,-10000.01,0.0001259,2]
[399979842,1766971959708,-10000.01,0.0001259,2]
[399979843,1766971959808,-10000.01,0.0001259,2]
[399979844,1766971961152,300.72304006,0.00030136,120]
[399979845,1766971962106,170.07998807,0.00030136,120]
[399979846,1766971962442,-192.99833685,0.00012589,2]
[399979847,1766971962472,-500.0,0.00012589,2]
[399979848,1766971962502,-359.57937024,0.00012589,2]
[399979849,1766971962532,-529.09171304,0.00012589,2]
[399979850,1766971962619,-6836.67115974,0.0001259,2]
[399979851,1766971962634,-10000.01,0.0001259,2]
[399979852,1766971962663,-10000.01,0.0001259,2]
[399979853,1766971962931,169.58359889,0.00030136,120]
[399979854,1766971964232,160.32291547,0.00030136,120]
[399979855,1766971965472,-10000.01,0.0001259,2]
[399979856,1766971965586,-10000.01,0.0001259,2]
[399979857,1766971966760,500.0,0.00030136,120]
[399979858,1766971967002,253.93601344,0.00030136,120]
[399979859,1766971968014,233.4428455,0.00030136,120]
[399979860,1766971968215,314.00479414,0.00030136,120]
[399979861,1766971971508,2000.0,0.000202,30]
[399979862,1766971973256,166.39922835,0.00030136,120]
[399979863,1766971973814,226.32409959,0.00030136,120]
[399979864,1766971975000,267.63935409,0.00030136,120]
[399979865,1766971975488,302.67244858,0.000301,120]
[399979866,1766971976062,151.70531116,0.00030136,120]
[399979867,1766971979462,153.57415496,0.00030136,120]
[399979868,1766971980538,3936.39080978,0.000125,2]
[399979869,1766971982829,290.20768065,0.00030136,120]
[399979870,1766971983501,247.9356462,0.00030136,120]
[399979871,1766971984244,167.79847323,0.00030136,120]
[399979872,1766971984688,158.94149954,0.00030136,120]
[399979873,1766971987484,500.0,0.00030136,120]
[399979874,1766971987741,302.55534816,0.00030136,120]
[399979876,1766971988003,478.79288953,0.00030136,120]
[399979877,1766971988371,10000.01,7.945e-05,2]
[399979878,1766971988394,4561.221435,7.945e-05,2]
[399979879,1766971989947,165.78671701,0.00030136,120]
[399979880,1766971994593,169.16731126,0.00030136,120]
[399979881,1766971994787,313.05266145,0.00030136,120]
[399979882,1766971995327,289.54605988,0.00030136,120]
[399979883,1766971996748,194.98600385,0.00030136,120]
[399979884,1766971998184,257.10674404,0.00030136,120]
[399979885,1766971998286,339.21558719,0.00030136,120]
[399979886,1766971999329,269.54083257,0.00030136,120]
[399979887,1766972000192,370.49787858,0.00030136,120]
[399979888,1766972000559,190.9932913,0.00030136,120]
[399979889,1766972004297,429.3541401,0.00030136,120]
[399979890,1766972004566,314.99339265,0.00030136,120]
[399979891,1766972005513,166.30022913,0.00030136,120]
[399979892,1766972006085,517.54512253,0.00030136,120]
[399979893,1766972008354,177.52681233,0.00030136,120]
[399979894,1766972008511,210.74379409,0.00030136,120]
[399979895,1766972010121,191.12033732,0.00030136,120]
[399979896,1766972010767,344.99162504,0.00030136,120]
[399979897,1766972014339,212.58335254,0.00030136,120]
[399979898,1766972014726,169.78980147,0.00030136,120]
[399979899,1766972015481,250.08878099,0.00030136,120]
[399979900,1766972015727,-151.0,0.00012587,2]
[399979901,1766972015750,-300.0,0.00012589,2]
[399979902,1766972015771,-150.0,0.00012589,2]
[399979903,1766972015792,-300.0,0.00012589,2]
[399979904,1766972015814,-1200.0,0.00012589,2]
[399979905,1766972015840,-513830.69375278,0.0001259,2]
[399979906,1766972015861,-75530.9787,0.000126,2]
[399979907,1766972015883,-527.3999,0.000126,2]
[399979908,1766972015905,-200.0,0.00012633,2]
[399979909,1766972015926,-207.4,0.00012633,2]
[399979910,1766972015947,-215.0738,0.00012633,2]
[399979911,1766972015969,-223.0315306,0.00012633,2]
[399979912,1766972015990,-231.28369723,0.00012633,2]
[399979913,1766972016012,-239.84119403,0.00012633,2]
[399979914,1766972016033,-248.71531821,0.00012633,2]
[399979915,1766972016053,-257.91778498,0.00012633,2]
[399979916,1766972016076,-3936.39080977,0.00012989,2]
[399979917,1766972016098,-1000.0,0.00013124,2]
[399979918,1766972016125,-2500.0,0.00013125,2]
[399979919,1766972016145,-184.93934703,0.00013232,2]
[399979920,1766972016170,-553.64373807,0.00013317,2]
[399979921,1766972016192,-500.0,0.00013317,2]
[399979922,1766972016218,-151.0,0.00013317,2]
[399979923,1766972016240,-500.0,0.00013317,2]
[399979924,1766972016521,-151.0,0.00013317,2]
[399979925,1766972016544,-500.0,0.00013317,2]
[399979926,1766972016566,-160.07279034,0.00013317,2]
[399979927,1766972016588,-500.0,0.00013317,2]
[399979928,1766972016608,-500.0,0.00013317,2]
[399979929,1766972016632,-500.0,0.00013317,2]
[399979930,1766972016654,-500.0,0.00013317,2]
[399979931,1766972016677,-500.0,0.00013317,2]
[399979932,1766972016698,-578.93491149,0.00013317,2]
[399979933,1766972016718,-500.0,0.00013317,2]
[399979934,1766972016738,-500.0,0.00013317,2]
[399979935,1766972016759,-500.0,0.00013317,2]
[399979936,1766972016779,-250.0,0.00013317,2]
[399979937,1766972016799,-500.0,0.00013317,2]
[399979938,1766972016821,-522.54790167,0.00013317,2]
[399979939,1766972016842,-250.0,0.00013317,2]
[399979940,1766972016866,-500.0,0.00013317,2]
[399979941,1766972016887,-250.0,0.00013317,2]
[399979942,1766972016910,-500.0,0.00013317,2]
[399979943,1766972016930,-500.0,0.00013317,2]
[399979944,1766972016951,-250.0,0.00013317,2]
[399979945,1766972016972,-546.60115589,0.00013317,2]
[399979946,1766972016996,-600.15283931,0.00013317,2]
[399979947,1766972017016,-250.0,0.00013317,2]
[399979948,1766972017038,-250.0,0.00013317,2]
[399979949,1766972017062,-250.0,0.00013317,2]
[399979950,1766972017085,-250.0,0.00013317,2]
[399979951,1766972017110,-250.0,0.00013317,2]
[399979952,1766972017133,-1000.0,0.00013317,2]
[399979953,1766972017158,-250.0,0.00013317,2]
[399979954,1766972017180,-1000.0,0.00013317,2]
[399979955,1766972017204,-261.32986601,0.00013317,2]
[399979956,1766972017227,-500.0,0.00013317,2]
[399979957,1766972017252,-1000.0,0.00013317,2]
[399979958,1766972017274,-500.0,0.00013317,2]
[399979959,1766972017300,-1000.0,0.00013317,2]
[399979960,1766972017324,-500.0,0.00013317,2]
[399979961,1766972017347,-250.0,0.00013317,2]
[399979962,1766972017369,-1000.0,0.00013317,2]
[399979963,1766972017390,-500.0,0.00013317,2]
[399979964,1766972017410,-582.40381135,0.00013317,2]
[399979965,1766972017430,-250.0,0.00013317,2]
[399979966,1766972017450,-500.0,0.00013317,2]
[399979967,1766972017470,-250.0,0.00013317,2]
[399979968,1766972017490,-500.0,0.00013317,2]
[399979969,1766972017511,-250.0,0.00013317,2]
[399979970,1766972017531,-250.0,0.00013317,2]
[399979971,1766972017550,-500.0,0.00013317,2]
[399979972,1766972017571,-250.0,0.00013317,2]
[399979973,1766972017592,-500.0,0.00013317,2]
[399979974,1766972017611,-250.0,0.00013317,2]
[399979975,1766972017630,-500.0,0.00013317,2]
[399979976,1766972017650,-500.0,0.00013317,2]
[399979977,1766972017670,-250.0,0.00013317,2]
[399979978,1766972017691,-267.46074303,0.00013317,2]
[399979979,1766972017712,-635.05030962,0.00013317,2]
[399979980,1766972017744,-250.0,0.00013317,2]
[399979981,1766972017766,-273.94491826,0.00013317,2]
[399979982,1766972017787,-500.0,0.00013317,2]
[399979983,1766972017807,-500.0,0.00013317,2]
[399979984,1766972017828,-500.0,0.00013317,2]
[399979985,1766972017850,-500.0,0.00013317,2]
[399979986,1766972017871,-500.0,0.00013317,2]
[399979987,1766972017890,-266.20987224,0.00013317,2]
[399979988,1766972017911,-500.0,0.00013317,2]
[399979989,1766972017932,-260.90172617,0.00013324,2]
[399979990,1766972017952,-300.0,0.00013324,2]
[399979991,1766972017972,-586.54308002,0.00013325,2]
[399979992,1766972017994,-300.0,0.00013397,2]
[399979993,1766972018015,-302.4522238,0.00013397,2]
[399979994,1766972018036,-3936.39080977,0.00013478,2]
[399979995,1766972018056,-1000.0,0.000135,2]
[399979996,1766972018079,-166.66,0.00013507,2]
[399979997,1766972018100,-3181.81910456,0.00013533,2]
[399979998,1766972018121,-500.0,0.00013534,2]
[399979999,1766972018147,-500.0,0.00013591,2]
[399980000,1766972018171,-2912.0,0.00013629,2]
[399980001,1766972018193,-255.0,0.00013684,2]
[399980002,1766972018215,-557.66,0.00013698,2]
[399980003,1766972018236,-500.0,0.00013698,2]
[399980004,1766972018257,-500.0,0.00013698,2]
[399980005,1766972018278,-552.54951057,0.00013698,2]
[399980006,1766972018299,-500.0,0.00013698,2]
[399980007,1766972018320,-500.0,0.00013698,2]
[399980008,1766972018342,-500.0,0.00013698,2]
[399980009,1766972018361,-500.0,0.00013698,2]